fUSD/lending_fUSD_20260202
["ID","MTS","AMOUNT","RATE_DAILY","PERIOD"]
[404347283,1770070292187,-564.38713412,0.00043287,120]
[404347284,1770070292196,-649.93842755,0.00043287,120]
[404347285,1770070292207,-507.29998173,0.00043287,120]
[404347286,1770070292217,-500.0,0.00043287,120]
[404347287,1770070292227,-500.0,0.00043287,120]
[404347288,1770070292241,-555.23542393,0.00043287,120]
[404347289,1770070292252,-536.34893751,0.00043287,14]
[404347290,1770070292261,-582.16533224,0.00043287,120]
[404347291,1770070292273,-203.75834804,0.00043287,120]
[404347292,1770070292282,-500.0,0.00043287,120]
[404347293,1770070292292,-570.41576553,0.00043287,120]
[404347294,1770070292302,-528.88695784,0.00043287,120]
[404347295,1770070292314,-500.0,0.00043287,120]
[404347296,1770070292323,-500.0,0.00043287,120]
[404347297,1770070292332,-500.0,0.00043287,120]
[404347298,1770070292341,-363.20513496,0.00043287,120]
[404347299,1770070292350,-500.0,0.00043287,120]
[404347300,1770070292359,-500.0,0.00043287,120]
[404347301,1770070292368,-577.61384058,0.00043287,120]
[404347302,1770070292378,-508.47368356,0.00043287,120]
[404347303,1770070292387,-500.0,0.00043287,120]
[404347304,1770070292396,-507.75218707,0.00043287,120]
[404347305,1770070292407,-500.0,0.00043287,120]
[404347306,1770070292417,-618.05590717,0.00043287,120]
[404347307,1770070292426,-500.0,0.00043287,120]
[404347308,1770070292436,-419.66186851,0.00043287,120]
[404347309,1770070292446,-500.0,0.00043287,120]
[404347310,1770070292456,-500.0,0.00043287,120]
[404347311,1770070292466,-508.31737321,0.00043287,120]
[404347312,1770070292475,-514.81896025,0.00043287,120]
[404347313,1770070292485,-500.0,0.00043287,120]
[404347314,1770070292496,-500.0,0.00043287,120]
[404347315,1770070292506,-510.54536205,0.00043287,120]
[404347316,1770070292518,-500.0,0.00043287,120]
[404347317,1770070292527,-500.0,0.00043287,120]
[404347318,1770070292538,-459.17292998,0.00043287,120]
[404347319,1770070292548,-609.21995581,0.00043287,120]
[404347320,1770070292560,-500.0,0.00043287,120]
[404347321,1770070292569,-500.0,0.00043287,120]
[404347322,1770070292579,-512.83684911,0.00043287,120]
[404347323,1770070292588,-378.49779997,0.00043287,120]
[404347324,1770070292597,-512.82519625,0.00043287,120]
[404347325,1770070292606,-505.68637223,0.00043287,120]
[404347326,1770070292615,-845.16,0.00043287,120]
[404347327,1770070292625,-523.25187209,0.00043287,120]
[404347328,1770070292635,-845.16,0.00043287,120]
[404347329,1770070292645,-535.8403973,0.00043287,120]
[404347330,1770070292655,-500.0,0.00043287,120]
[404347331,1770070292665,-845.16,0.00043287,120]
[404347332,1770070292674,-515.42567297,0.00043287,120]
[404347333,1770070292683,-500.0,0.00043287,120]
[404347334,1770070292693,-845.16,0.00043287,120]
[404347335,1770070292702,-500.0,0.00043287,120]
[404347336,1770070292713,-519.32846169,0.00043287,120]
[404347337,1770070292722,-845.16,0.00043287,120]
[404347338,1770070292731,-516.39477043,0.00043287,120]
[404347339,1770070292741,-500.0,0.00043287,120]
[404347340,1770070292751,-845.16,0.00043287,120]
[404347341,1770070292760,-529.15942666,0.00043287,120]
[404347342,1770070292770,-845.16,0.00043287,120]
[404347343,1770070292779,-845.16,0.00043287,120]
[404347344,1770070292789,-500.0,0.00043287,120]
[404347345,1770070292799,-845.16,0.00043287,120]
[404347346,1770070292809,-520.67734393,0.00043287,120]
[404347347,1770070292818,-845.16,0.00043287,120]
[404347348,1770070292828,-845.16,0.00043287,120]
[404347349,1770070292838,-845.16,0.00043287,120]
[404347350,1770070292847,-845.16,0.00043287,120]
[404347351,1770070292856,-500.0,0.00043287,120]
[404347352,1770070292866,-845.16,0.00043287,120]
[404347353,1770070292876,-500.0,0.00043287,120]
[404347354,1770070292885,-845.16,0.00043287,120]
[404347355,1770070292895,-500.0,0.00043287,120]
[404347356,1770070292905,-845.16,0.00043287,120]
[404347357,1770070292915,-500.0,0.00043287,120]
[404347358,1770070292924,-845.16,0.00043287,120]
[404347359,1770070292934,-500.0,0.00043287,120]
[404347360,1770070292943,-845.16,0.00043287,120]
[404347361,1770070292953,-500.0,0.00043287,120]
[404347362,1770070292962,-500.0,0.00043287,120]
[404347363,1770070292972,-845.16,0.00043287,120]
[404347364,1770070292981,-500.0,0.00043287,120]
[404347365,1770070292991,-500.0,0.00043287,120]
[404347366,1770070293000,-845.16,0.00043287,120]
[404347367,1770070293010,-500.0,0.00043287,120]
[404347368,1770070293019,-845.16,0.00043287,120]
[404347369,1770070293028,-500.0,0.00043287,120]
[404347370,1770070293038,-845.16,0.00043287,120]
[404347371,1770070293102,-500.0,0.00043287,120]
[404347372,1770070293111,-500.0,0.00043287,120]
[404347373,1770070293121,-845.16,0.00043287,120]
[404347374,1770070293131,-500.0,0.00043287,120]
[404347375,1770070293140,-500.0,0.00043287,120]
[404347376,1770070293149,-500.0,0.00043287,120]
[404347377,1770070293158,-500.0,0.00043287,120]
[404347378,1770070293167,-500.0,0.00043287,120]
[404347379,1770070293176,-382.16434644,0.00043287,120]
[404347380,1770070293185,-500.0,0.00043287,120]
[404347381,1770070293195,-845.31867015,0.00043287,120]
[404347382,1770070293204,-500.0,0.00043287,120]
[404347383,1770070293213,-500.0,0.00043287,120]
[404347384,1770070293222,-500.0,0.00043287,120]
[404347385,1770070293233,-500.0,0.00043287,120]
[404347386,1770070293243,-500.0,0.00043287,120]
[404347387,1770070293252,-516.8056543,0.00043287,120]
[404347388,1770070293261,-500.0,0.00043287,120]
[404347389,1770070293270,-500.0,0.00043287,120]
[404347390,1770070293282,-500.0,0.00043287,120]
[404347391,1770070293292,-500.0,0.00043287,120]
[404347392,1770070293303,-500.0,0.00043287,120]
[404347393,1770070293313,-500.0,0.00043287,120]
[404347394,1770070293322,-500.0,0.00043287,120]
[404347395,1770070293331,-500.0,0.00043287,120]
[404347396,1770070293341,-528.56872684,0.00043287,120]
[404347397,1770070293351,-506.79269335,0.00043287,120]
[404347398,1770070293361,-500.0,0.00043287,120]
[404347399,1770070293370,-478.07718561,0.00043287,120]
[404347400,1770070293380,-500.0,0.00043287,120]
[404347401,1770070293389,-640.25591222,0.00043287,120]
[404347402,1770070293398,-525.57177846,0.00043287,120]
[404347403,1770070293407,-504.27035788,0.00043287,120]
[404347404,1770070293416,-500.0,0.00043287,120]
[404347405,1770070293425,-514.58893333,0.00043287,120]
[404347406,1770070293435,-539.3048357,0.00043287,60]
[404347407,1770070293444,-588.162351,0.00043287,120]
[404347408,1770070293454,-545.14,0.00043287,120]
[404347409,1770070293463,-624.78402412,0.00043287,120]
[404347410,1770070293472,-646.37618659,0.00043287,120]
[404347411,1770070293481,-563.16041577,0.00043287,120]
[404347412,1770070293490,-545.14,0.00043287,120]
[404347413,1770070293499,-500.0,0.00043287,120]
[404347414,1770070293509,-545.14,0.00043287,120]
[404347415,1770070293518,-547.52058078,0.00043287,120]
[404347416,1770070293527,-545.14,0.00043287,120]
[404347417,1770070293537,-545.14,0.00043287,120]
[404347418,1770070293547,-500.0,0.00043287,120]
[404347419,1770070293556,-545.14,0.00043287,120]
[404347420,1770070293567,-301.18692736,0.00043287,120]
[404347421,1770070293576,-545.14,0.00043287,120]
[404347422,1770070293585,-545.14,0.00043287,120]
[404347423,1770070293594,-545.14,0.00043287,120]
[404347424,1770070293603,-517.90552502,0.00043287,120]
[404347425,1770070293614,-545.14,0.00043287,120]
[404347426,1770070293623,-545.14,0.00043287,120]
[404347427,1770070293633,-630.07867173,0.00043287,120]
[404347428,1770070293643,-527.09203172,0.00043287,120]
[404347429,1770070293653,-545.14,0.00043287,120]
[404347430,1770070293663,-545.14,0.00043287,120]
[404347431,1770070293673,-500.0,0.00043287,120]
[404347432,1770070293683,-545.14,0.00043287,120]
[404347433,1770070293692,-223.71715892,0.00043287,120]
[404347434,1770070293701,-545.14,0.00043287,120]
[404347435,1770070293711,-545.14,0.00043287,120]
[404347436,1770070293721,-545.14,0.00043287,120]
[404347437,1770070293731,-545.14,0.00043287,120]
[404347438,1770070293741,-545.14,0.00043287,120]
[404347439,1770070293750,-545.14,0.00043287,120]
[404347440,1770070293760,-280.12368519,0.00043287,2]
[404347441,1770070293769,-545.14,0.00043287,120]
[404347442,1770070293778,-545.14,0.00043287,120]
[404347443,1770070293788,-545.14,0.00043287,120]
[404347444,1770070293798,-545.34597692,0.00043287,120]
[404347445,1770070293808,-547.92482539,0.00043287,120]
[404347446,1770070293817,-529.34376434,0.00043287,120]
[404347447,1770070293826,-500.0,0.00043287,120]
[404347448,1770070293835,-635.33997558,0.00043287,120]
[404347449,1770070293844,-498.53440158,0.00043287,120]
[404347450,1770070293853,-500.0,0.00043287,120]
[404347451,1770070293862,-501.36694468,0.00043287,60]
[404347452,1770070293871,-500.0,0.00043287,120]
[404347453,1770070293882,-500.0,0.00043287,120]
[404347454,1770070293891,-500.0,0.00043287,120]
[404347455,1770070293899,-174.89047433,0.00043287,120]
[404347456,1770070293909,-500.0,0.00043287,120]
[404347457,1770070293918,-500.0,0.00043287,120]
[404347458,1770070293927,-500.0,0.00043287,120]
[404347459,1770070293937,-500.0,0.00043287,120]
[404347460,1770070293946,-526.05994496,0.00043287,120]
[404347461,1770070293955,-500.0,0.00043287,120]
[404347462,1770070293964,-500.0,0.00043287,120]
[404347463,1770070293973,-500.0,0.00043287,120]
[404347464,1770070293982,-500.0,0.00043287,120]
[404347465,1770070293991,-500.0,0.00043287,120]
[404347466,1770070294002,-500.0,0.00043287,120]
[404347467,1770070294012,-500.0,0.00043287,120]
[404347468,1770070294021,-500.0,0.00043287,120]
[404347469,1770070294030,-507.98388388,0.00043287,120]
[404347470,1770070294038,-500.0,0.00043287,120]
[404347471,1770070294048,-500.0,0.00043287,120]
[404347472,1770070294057,-500.0,0.00043287,120]
[404347473,1770070294066,-500.0,0.00043287,120]
[404347474,1770070294075,-500.0,0.00043287,120]
[404347475,1770070294084,-168.69234298,0.00043287,120]
[404347476,1770070294099,-500.0,0.00043287,120]
[404347477,1770070294116,-500.0,0.00043287,120]
[404347478,1770070294126,-500.0,0.00043287,120]
[404347479,1770070294134,-500.0,0.00043287,120]
[404347480,1770070294143,-500.0,0.00043287,120]
[404347481,1770070294152,-500.0,0.00043287,120]
[404347482,1770070294162,-500.0,0.00043287,120]
[404347483,1770070294171,-500.0,0.00043287,120]
[404347484,1770070294179,-500.0,0.00043287,120]
[404347485,1770070294188,-540.55951845,0.00043287,120]
[404347486,1770070294197,-500.0,0.00043287,120]
[404347487,1770070294207,-518.70090066,0.00043287,120]
[404347488,1770070294217,-500.0,0.00043287,120]
[404347489,1770070294226,-500.0,0.00043287,120]
[404347490,1770070294240,-500.0,0.00043287,120]
[404347491,1770070294250,-515.2657466,0.00043287,120]
[404347492,1770070294260,-500.0,0.00043287,120]
[404347493,1770070294270,-611.80179561,0.00043287,120]
[404347494,1770070294281,-500.0,0.00043287,120]
[404347495,1770070294290,-512.90964389,0.00043287,120]
[404347496,1770070294300,-572.90520867,0.00043287,120]
[404347497,1770070294312,-500.0,0.00043287,120]
[404347498,1770070294323,-550.92664865,0.00043287,120]
[404347499,1770070294333,-500.0,0.00043287,120]
[404347500,1770070294342,-607.01885029,0.00043287,120]
[404347501,1770070294353,-500.0,0.00043287,120]
[404347502,1770070294362,-500.0,0.00043287,120]
[404347503,1770070294372,-618.1816886,0.00043287,120]
[404347504,1770070294381,-500.0,0.00043287,120]
[404347505,1770070294390,-500.0,0.00043287,120]
[404347506,1770070294399,-500.0,0.00043287,120]
[404347507,1770070294408,-500.0,0.00043287,120]
[404347508,1770070294417,-500.0,0.00043287,120]
[404347509,1770070294426,-500.0,0.00043287,120]
[404347510,1770070294435,-500.0,0.00043287,120]
[404347511,1770070294445,-508.55035951,0.00043287,120]
[404347512,1770070294454,-500.0,0.00043287,120]
[404347513,1770070294463,-500.0,0.00043287,120]
[404347514,1770070294474,-531.23563918,0.00043287,120]
[404347515,1770070294484,-500.0,0.00043287,120]
[404347516,1770070294494,-500.0,0.00043287,120]
[404347517,1770070294504,-500.0,0.00043287,120]
[404347518,1770070294514,-500.0,0.00043287,120]
[404347519,1770070294523,-500.0,0.00043287,120]
[404347520,1770070294533,-509.32227413,0.00043287,120]
[404347521,1770070294544,-538.32564997,0.00043287,120]
[404347522,1770070294553,-500.0,0.00043287,120]
[404347523,1770070294561,-517.65324426,0.00043287,120]
[404347524,1770070294570,-570.16229913,0.00043287,120]
[404347525,1770070294580,-452.63240659,0.00043287,120]
[404347526,1770070294590,-523.70885987,0.00043287,120]
[404347527,1770070294600,-500.0,0.00043287,120]
[404347528,1770070294610,-500.0,0.00043287,120]
[404347529,1770070294619,-500.0,0.00043287,120]
[404347530,1770070294629,-500.0,0.00043287,120]
[404347531,1770070294638,-500.0,0.00043287,120]
[404347532,1770070294648,-508.82213198,0.00043287,120]
[404347533,1770070294657,-500.0,0.00043287,20]
[404347534,1770070294667,-500.0,0.00043287,20]
[404347535,1770070294676,-500.0,0.00043287,20]
[404347536,1770070294686,-500.0,0.00043287,20]
[404347537,1770070294695,-500.0,0.00043287,20]
[404347538,1770070294704,-500.0,0.00043287,20]
[404347539,1770070294714,-500.0,0.00043287,20]
[404347540,1770070294723,-516.58308974,0.00043287,120]
[404347541,1770070294732,-500.0,0.00043287,120]
[404347542,1770070294743,-500.0,0.00043287,20]
[404347543,1770070294753,-500.0,0.00043287,120]
[404347544,1770070294762,-500.0,0.00043287,20]
[404347545,1770070294772,-536.9009672,0.00043287,120]
[404347546,1770070294781,-183.36107161,0.00043287,20]
[404347547,1770070294790,-598.7276796,0.00043287,120]
[404347548,1770070294800,-513.56842531,0.00043287,120]
[404347549,1770070294809,-556.72471813,0.00043287,120]
[404347550,1770070294818,-526.2273831,0.00043287,120]
[404347551,1770070294828,-500.0,0.00043287,120]
[404347552,1770070294837,-500.0,0.00043287,120]
[404347553,1770070294846,-500.0,0.00043287,120]
[404347554,1770070294855,-533.01224627,0.00043287,120]
[404347555,1770070294864,-500.0,0.00043287,120]
[404347556,1770070294874,-500.0,0.00043287,120]
[404347557,1770070294883,-500.0,0.00043287,120]
[404347558,1770070294895,-500.0,0.00043287,120]
[404347559,1770070294905,-500.0,0.00043287,120]
[404347560,1770070294915,-552.13192949,0.00043287,120]
[404347561,1770070294924,-520.37100445,0.00043287,120]
[404347562,1770070294933,-500.0,0.00043287,120]
[404347563,1770070294943,-500.0,0.00043287,120]
[404347564,1770070294952,-521.21540033,0.00043287,120]
[404347565,1770070294963,-500.0,0.00043287,120]
[404347566,1770070294972,-500.0,0.00043287,120]
[404347567,1770070294981,-500.0,0.00043287,120]
[404347568,1770070294990,-500.0,0.00043287,120]
[404347569,1770070295000,-500.0,0.00043287,120]
[404347570,1770070295009,-500.0,0.00043287,120]
[404347571,1770070295018,-525.2546198,0.00043287,120]
[404347572,1770070295028,-500.0,0.00043287,120]
[404347573,1770070295037,-519.52575351,0.00043287,120]
[404347574,1770070295046,-438.12031118,0.00043287,120]
[404347575,1770070295055,-514.90139044,0.00043287,120]
[404347576,1770070295064,-500.0,0.00043287,120]
[404347577,1770070295073,-536.60270021,0.00043287,120]
[404347578,1770070295083,-500.0,0.00043287,120]
[404347579,1770070295092,-578.89697127,0.00043287,120]
[404347580,1770070295101,-518.82461998,0.00043287,120]
[404347581,1770070295110,-518.07569458,0.00043287,120]
[404347582,1770070295120,-500.0,0.00043287,120]
[404347583,1770070295129,-293.97793932,0.00043287,120]
[404347584,1770070295138,-545.40511837,0.00043287,120]
[404347585,1770070295147,-537.52422473,0.00043287,120]
[404347586,1770070295157,-503.17589748,0.00043287,120]
[404347587,1770070295166,-629.52809048,0.00043287,120]
[404347588,1770070295176,-500.0,0.00043287,120]
[404347589,1770070295185,-500.0,0.00043287,120]
[404347590,1770070295194,-500.0,0.00043287,120]
[404347591,1770070295204,-500.0,0.00043287,120]
[404347592,1770070295214,-500.0,0.00043287,120]
[404347593,1770070295223,-500.0,0.00043287,120]
[404347594,1770070295235,-500.0,0.00043287,120]
[404347595,1770070295244,-500.0,0.00043287,120]
[404347596,1770070295253,-500.0,0.00043287,120]
[404347597,1770070295263,-567.51091916,0.00043287,120]
[404347598,1770070295272,-500.0,0.00043287,120]
[404347599,1770070295282,-500.0,0.00043287,120]
[404347600,1770070295292,-500.0,0.00043287,120]
[404347601,1770070295301,-361.69219166,0.00043287,120]
[404347602,1770070295311,-500.0,0.00043287,120]
[404347603,1770070295320,-500.0,0.00043287,120]
[404347604,1770070295329,-500.0,0.00043287,120]
[404347605,1770070295338,-500.0,0.00043287,120]
[404347606,1770070295348,-500.0,0.00043287,120]
[404347607,1770070295357,-549.4435971,0.00043287,120]
[404347608,1770070295366,-506.86664184,0.00043287,120]
[404347609,1770070295375,-449.83120392,0.00043287,120]
[404347610,1770070295385,-537.26411691,0.00043287,120]
[404347611,1770070295394,-552.93345907,0.00043287,120]
[404347612,1770070295403,-535.51176825,0.00043287,120]
[404347613,1770070295412,-524.58972472,0.00043287,120]
[404347614,1770070295421,-509.99575872,0.00043287,120]
[404347615,1770070295430,-616.42635334,0.00043287,120]
[404347616,1770070295439,-514.92895268,0.00043287,120]
[404347617,1770070295449,-542.00168968,0.00043287,120]
[404347618,1770070295458,-568.61786627,0.00043287,120]
[404347619,1770070295468,-500.0,0.00043287,120]
[404347620,1770070295477,-500.0,0.00043287,120]
[404347621,1770070295486,-513.63825658,0.00043287,120]
[404347622,1770070295496,-503.11134626,0.00043287,120]
[404347623,1770070295505,-609.31106136,0.00043287,120]
[404347624,1770070295514,-522.9016768,0.00043287,120]
[404347625,1770070295523,-500.0,0.00043287,120]
[404347626,1770070295532,-500.0,0.00043287,120]
[404347627,1770070295541,-608.89050389,0.00043287,120]
[404347628,1770070295550,-500.0,0.00043287,120]
[404347629,1770070295560,-500.0,0.00043287,120]
[404347630,1770070295569,-500.0,0.00043287,120]
[404347631,1770070295578,-500.0,0.00043287,120]
[404347632,1770070295587,-500.0,0.00043287,120]
[404347633,1770070295596,-500.0,0.00043287,120]
[404347634,1770070295605,-500.0,0.00043287,120]
[404347635,1770070295614,-500.0,0.00043287,120]
[404347636,1770070295624,-500.0,0.00043287,120]
[404347637,1770070295633,-500.0,0.00043287,30]
[404347638,1770070295642,-500.0,0.00043287,120]
[404347639,1770070295652,-314.46209602,0.00043287,30]
[404347640,1770070295661,-500.0,0.00043287,120]
[404347641,1770070295670,-500.0,0.00043287,120]
[404347642,1770070295680,-509.57679663,0.00043287,120]
[404347643,1770070295689,-500.0,0.00043287,120]
[404347644,1770070295698,-500.0,0.00043287,120]
[404347645,1770070295707,-500.0,0.00043287,120]
[404347646,1770070295717,-500.0,0.00043287,120]
[404347647,1770070295727,-500.0,0.00043287,120]
[404347648,1770070295737,-500.0,0.00043287,120]
[404347649,1770070295746,-500.0,0.00043287,120]
[404347650,1770070295756,-500.0,0.00043287,120]
[404347651,1770070295765,-500.0,0.00043287,120]
[404347652,1770070295775,-582.31280487,0.00043287,120]
[404347653,1770070295785,-500.0,0.00043287,120]
[404347654,1770070295794,-500.0,0.00043287,120]
[404347655,1770070295804,-500.0,0.00043287,120]
[404347656,1770070295813,-500.0,0.00043287,120]
[404347657,1770070295822,-500.0,0.00043287,120]
[404347658,1770070295831,-500.0,0.00043287,120]
[404347659,1770070295840,-500.0,0.00043287,120]
[404347660,1770070295849,-500.0,0.00043287,120]
[404347661,1770070295859,-560.93344997,0.00043287,120]
[404347662,1770070295869,-500.0,0.00043287,120]
[404347663,1770070295879,-376.87420669,0.00043287,120]
[404347664,1770070295888,-500.0,0.00043287,120]
[404347665,1770070295897,-500.0,0.00043287,120]
[404347666,1770070295907,-500.0,0.00043287,120]
[404347667,1770070295918,-500.0,0.00043287,120]
[404347668,1770070295928,-500.0,0.00043287,120]
[404347669,1770070295939,-500.0,0.00043287,120]
[404347670,1770070295950,-500.0,0.00043287,120]
[404347671,1770070295961,-514.8817743,0.00043287,120]
[404347672,1770070295970,-500.0,0.00043287,120]
[404347673,1770070295979,-521.3253132,0.00043287,120]
[404347674,1770070295989,-500.0,0.00043287,120]
[404347675,1770070295998,-500.0,0.00043287,120]
[404347676,1770070296007,-500.0,0.00043287,120]
[404347677,1770070296017,-500.0,0.00043287,120]
[404347678,1770070296026,-629.67480326,0.00043287,120]
[404347679,1770070296036,-500.0,0.00043287,120]
[404347680,1770070296047,-500.0,0.00043287,120]
[404347681,1770070296058,-500.0,0.00043287,120]
[404347682,1770070296068,-500.0,0.00043287,120]
[404347683,1770070296077,-525.34694238,0.00043287,120]
[404347684,1770070296086,-515.54137402,0.00043287,120]
[404347685,1770070296096,-500.0,0.00043287,120]
[404347686,1770070296109,-500.0,0.00043287,120]
[404347687,1770070296119,-500.0,0.00043287,120]
[404347688,1770070296131,-514.43969025,0.00043287,120]
[404347689,1770070296141,-423.95017105,0.00043287,120]
[404347690,1770070296150,-500.0,0.00043287,120]
[404347691,1770070296160,-507.46279797,0.00043287,120]
[404347692,1770070296170,-500.0,0.00043287,120]
[404347693,1770070296179,-529.31585056,0.00043287,120]
[404347694,1770070296188,-273.25425158,0.00043287,120]
[404347695,1770070296198,-500.0,0.00043287,120]
[404347696,1770070296207,-500.0,0.00043287,120]
[404347697,1770070296217,-629.98385906,0.00043287,120]
[404347698,1770070296226,-533.37352279,0.00043287,120]
[404347699,1770070296239,-500.0,0.00043287,120]
[404347700,1770070296249,-500.0,0.00043287,120]
[404347701,1770070296259,-500.0,0.00043287,120]
[404347702,1770070296268,-548.25700749,0.00043287,120]
[404347703,1770070296279,-500.0,0.00043287,120]
[404347704,1770070296289,-154.77681679,0.00043287,120]
[404347705,1770070296299,-500.0,0.00043287,120]
[404347706,1770070296311,-429.44254062,0.00043287,120]
[404347707,1770070296321,-500.0,0.00043287,120]
[404347708,1770070296331,-500.0,0.00043287,120]
[404347709,1770070296340,-500.0,0.00043287,60]
[404347710,1770070296350,-500.0,0.00043287,120]
[404347711,1770070296360,-500.0,0.00043287,60]
[404347712,1770070296371,-500.0,0.00043287,120]
[404347713,1770070296382,-569.43989502,0.00043287,60]
[404347714,1770070296393,-500.0,0.00043287,120]
[404347715,1770070296402,-500.0,0.00043287,120]
[404347716,1770070296412,-500.0,0.00043287,120]
[404347717,1770070296422,-500.0,0.00043287,120]
[404347718,1770070296431,-500.0,0.00043287,120]
[404347719,1770070296441,-500.0,0.00043287,120]
[404347720,1770070296451,-545.41121543,0.00043287,120]
[404347721,1770070296461,-500.0,0.00043287,120]
[404347722,1770070296470,-500.0,0.00043287,120]
[404347723,1770070296480,-500.0,0.00043287,120]
[404347724,1770070296490,-503.53439945,0.00043287,120]
[404347725,1770070296504,-200.38544835,0.00043287,120]
[404347726,1770070296514,-500.0,0.00043287,120]
[404347727,1770070296524,-159.93025024,0.00043287,120]
[404347728,1770070296534,-500.0,0.00043287,120]
[404347729,1770070296545,-500.0,0.00043287,120]
[404347730,1770070296555,-545.493903,0.00043287,120]
[404347731,1770070296565,-500.0,0.00043287,120]
[404347732,1770070296575,-500.0,0.00043287,120]
[404347733,1770070296586,-500.0,0.00043287,120]
[404347734,1770070296597,-500.0,0.00043287,120]
[404347735,1770070296607,-500.0,0.00043287,120]
[404347736,1770070296617,-500.0,0.00043287,120]
[404347737,1770070296630,-500.0,0.00043287,120]
[404347738,1770070296641,-503.8664272,0.00043287,120]
[404347739,1770070296652,-500.0,0.00043287,120]
[404347740,1770070296662,-506.34060678,0.00043287,120]
[404347741,1770070296673,-500.0,0.00043287,120]
[404347742,1770070296684,-562.04002841,0.00043287,120]
[404347743,1770070296694,-500.0,0.00043287,120]
[404347744,1770070296919,-503.23829274,0.00043287,120]
[404347745,1770070296929,-516.34330696,0.00043287,120]
[404347746,1770070296939,-500.0,0.00043287,120]
[404347747,1770070296948,-500.0,0.00043287,120]
[404347748,1770070296958,-500.0,0.00043287,120]
[404347749,1770070296967,-500.0,0.00043287,120]
[404347750,1770070296976,-500.0,0.00043287,120]
[404347751,1770070296986,-500.0,0.00043287,120]
[404347752,1770070296995,-500.0,0.00043287,120]
[404347753,1770070297004,-515.13861541,0.00043287,120]
[404347754,1770070297013,-500.0,0.00043287,120]
[404347755,1770070297023,-500.0,0.00043287,120]
[404347756,1770070297032,-500.0,0.00043287,120]
[404347757,1770070297041,-500.0,0.00043287,120]
[404347758,1770070297051,-500.0,0.00043287,120]
[404347759,1770070297060,-511.734274,0.00043287,120]
[404347760,1770070297070,-500.0,0.00043287,120]
[404347761,1770070297080,-500.0,0.00043287,120]
[404347762,1770070297089,-500.0,0.00043287,120]
[404347763,1770070297099,-550.18029083,0.00043287,120]
[404347764,1770070297108,-500.0,0.00043287,120]
[404347765,1770070297118,-500.0,0.00043287,120]
[404347766,1770070297128,-511.94125322,0.00043287,120]
[404347767,1770070297138,-638.67530418,0.00043287,120]
[404347768,1770070297148,-500.0,0.00043287,120]
[404347769,1770070297158,-500.0,0.00043287,120]
[404347770,1770070297167,-500.0,0.00043287,120]
[404347771,1770070297176,-500.0,0.00043287,120]
[404347772,1770070297186,-500.0,0.00043287,120]
[404347773,1770070297195,-500.0,0.00043287,120]
[404347774,1770070297208,-500.0,0.00043287,120]
[404347775,1770070297218,-500.0,0.00043287,120]
[404347776,1770070297227,-500.0,0.00043287,120]
[404347777,1770070297240,-500.0,0.00043287,120]
[404347778,1770070297249,-500.0,0.00043287,120]
[404347779,1770070297259,-441.72106401,0.00043287,120]
[404347780,1770070297268,-519.16493842,0.00043287,120]
[404347781,1770070297279,-514.27935358,0.00043287,120]
[404347782,1770070297288,-553.34877497,0.00043287,120]